Cogmind - Beta 15 @@@ ROGUE MODE // 2025.09.14 @ 17:10:36 Player: BlobtheGreat Result: Destroyed by H-66 Slayer with Gauss Rifle Performance ------------- Evolutions (4) 2000 Regions Visited (16) 3200 Robots Destroyed (176) 880 Value Destroyed (5219) 5219 Prototype IDs (50) 1000 Alien Tech Used (0) 0 Bonus (1819) 1819 TOTAL SCORE: 14118 Bonus ------- High Alert Combat Kills 165 Follower Combat Kills 1479 Network Hubs Disabled 400 Aligned with FarCom 300 Built Enhanced Grunts 300 A7 Reached Mainframe 300 Met R17 at Cetus 500 Friendly Fire -1625 Cogmind --------- Core Integrity 0/850 Matter 288/300 Energy 26/100 System Corruption 56% Temperature Cool (0) Movement Walking (330) Ox3 Location -6/Hub_04(d) Parts ------- > --- POWER (1) -------- (None) > --- PROPULSION (5) --- Armored Leg > --- UTILITY (6) ------ High-capacity Storage Unit Improved Melee Analysis Suite Improved Actuator Array Experimental EM Shield > --- WEAPON (3) ------- RU-N14's Throwing Claymores > --- INVENTORY (20) --- Enhanced Flexi-carbon Leg Enhanced Flexi-carbon Leg Advanced Energy Well (500) Structural Scanner Spectral Analyzer Experimental Sensor Array Firepult Tiamat Missile Launcher Plasma Cutter RU-N14's Throwing Claymores (4) Peak State ------------ > --- POWER ------------ Light Angular Momentum Engine > --- PROPULSION ------- Armored Leg Armored Leg Enhanced Flexi-carbon Leg Enhanced Biometal Leg Enhanced Biometal Leg > --- UTILITY ---------- High-capacity Storage Unit Advanced Signal Interpreter Modified TNC Improved Melee Analysis Suite Centrium Medium Armor Plating Experimental EM Shield > --- WEAPON ----------- Chainsword Carbide Saw Phasing Sabre > --- INVENTORY -------- Armored Leg Armored Leg Enhanced Flexi-carbon Leg Enhanced Flexi-carbon Leg Advanced Energy Well Structural Scanner Spectral Analyzer Experimental Sensor Array Improved Actuator Array Centrium Medium Armor Plating Medium Regenerative Plating Firepult Tiamat Missile Launcher Plasma Cutter RU-N14's Throwing Claymores RU-N14's Throwing Claymores Molecular Deconstructor Heavy Pick [Rating: 103] Favorites ----------- Power Heavy Ion Engine Engine Heavy Ion Engine Reactor Antimatter Reactor Propulsion Light Treads Treads Light Treads Leg Carbon-fiber Leg Utility High-capacity Storage Unit Device Structural Scanner Storage High-capacity Storage Unit Processor Advanced Targeting Computer Hackware Experimental System Shield Protection Hardened Medium Armor Plating Weapon Heavy Assault Rifle Energy Gun Small Laser Energy Cannon Firepult Ballistic Gun Heavy Assault Rifle Launcher Tiamat Missile Launcher Special Weapon Plasma Cutter Impact Weapon Mace Slashing Weapon Chainsword Piercing Weapon Heavy Pick Build | -11 -10 -10 -9 -9 -9 -8 -8 -7 -7 -7 -6 -6 -6 -6 -6 -6 ------- Run | Yrd Mat Min Mat Min Exi Min Mat Fac Low Zio Pro Fac Ext Cet Arc Hub Slots Evolved 8 | . . . 2 . . . 2 2 . . . 2 . . . . Power . | . . . . . . . . . . . . . . . . . Propulsion 3 | . . . 1 . . . 1 1 . . . . . . . . Utility 4 | . . . 1 . . . 1 1 . . . 1 . . . . Weapon 1 | . . . . . . . . . . . . 1 . . . . Parts Attached 117 | 7 9 3 21 . 3 1 9 12 2 9 1 14 3 8 1 14 Power 14 | 1 2 . 4 . . . 1 1 . . . . 1 1 . 3 Engine 13 | 1 2 . 4 . . . 1 1 . . . . 1 . . 3 Core . | . . . . . . . . . . . . . . . . . Reactor 1 | . . . . . . . . . . . . . . 1 . . Propulsion 37 | 2 . . 8 . 3 . 5 5 . . . 8 . 1 . 5 Treads 18 | 2 . . 8 . 3 . 5 . . . . . . . . . Leg 19 | . . . . . . . . 5 . . . 8 . 1 . 5 Wheel . | . . . . . . . . . . . . . . . . . Hover . | . . . . . . . . . . . . . . . . . Flight . | . . . . . . . . . . . . . . . . . Utility 37 | 2 1 2 5 . . 1 1 5 . 6 1 3 1 4 1 4 Device 12 | 1 . 1 1 . . . 1 1 . . 1 . 1 1 1 3 Storage 5 | 1 1 1 1 . . . . . . . . . . 1 . . Processor 10 | . . . 2 . . . . 2 . 5 . 1 . . . . Hackware 2 | . . . . . . . . . . 1 . 1 . . . . Protection 8 | . . . 1 . . 1 . 2 . . . 1 . 2 . 1 Artifact . | . . . . . . . . . . . . . . . . . Weapon 29 | 2 6 1 4 . . . 2 1 2 3 . 3 1 2 . 2 Energy Gun 1 | 1 . . . . . . . . . . . . . . . . Energy Cannon 2 | . . . . . . . . . . . . . . 1 . 1 Ballistic Gun 10 | 1 5 1 3 . . . . . . . . . . . . . Ballistic Cannon . | . . . . . . . . . . . . . . . . . Launcher 4 | . . . . . . . 1 . 1 . . 1 . 1 . . Special Weapon 4 | . 1 . . . . . . . 1 1 . 1 . . . . Impact Weapon 2 | . . . 1 . . . . . . 1 . . . . . . Slashing Weapon 5 | . . . . . . . 1 1 . 1 . 1 1 . . . Piercing Weapon 1 | . . . . . . . . . . . . . . . . 1 Special Melee Weapon . | . . . . . . . . . . . . . . . . . Unidentified Prototypes 22 | . . . 2 . . . . 2 . 7 . 2 . 6 . 3 Corrupted Parts 1 | . . . . . . . . . . . . . . . . 1 System Corruption 10 | . . . . . . . . . . . . . . . . 10 Parts Lost 32 | . 1 2 5 . . . 2 . . 1 . . 2 . . 19 Power 7 | . 1 . . . . . 1 . . . . . 1 . . 4 Propulsion 8 | . . . 2 . . . . . . . . . . . . 6 Utility 8 | . . 1 . . . . 1 . . 1 . . . . . 5 Weapon 9 | . . 1 3 . . . . . . . . . 1 . . 4 Highest Loss Streak 6 | . 1 1 1 . . . 1 . . 1 . . 1 . . 6 To Critical Strikes 1 | . . . . . . . . . . . . . 1 . . . Average Backups 17 | 4 11 14 18 20 19 19 18 15 17 17 17 17 17 17 18 16 Power . | . . 1 1 1 1 1 . 1 1 1 1 1 . 1 1 . Propulsion 4 | 2 3 3 7 9 7 6 5 . 1 1 1 2 3 3 3 3 Utility 4 | . 1 2 3 3 4 5 5 5 6 7 8 6 6 6 7 6 Weapon 6 | . 5 7 5 5 5 6 6 6 7 7 6 6 7 5 6 5 Tool/Special . | . . . . . . . . . . . . . . . . . Unused Backups 39 | . 6 . 10 . 1 1 2 1 1 4 . 6 . 1 . 6 Power 2 | . . . 1 . . . . 1 . . . . . . . . Propulsion 15 | . 4 . 4 . . 1 1 . . . . 2 . . . 3 Utility 11 | . . . 3 . 1 . . . 1 . . 4 . 1 . 1 Weapon 11 | . 2 . 2 . . . 1 . . 4 . . . . . 2 Tool/Special . | . . . . . . . . . . . . . . . . . Average Slot Usage (%) 97 | . 99 99 97 100 100 100 99 99 100 99 100 93 93 97 100 85 Engine 8 | . 13 14 11 11 11 11 8 7 7 7 7 6 6 3 . 2 Treads 18 | . 27 28 32 33 33 33 35 . . . . . . . . . Leg 14 | . . . . . . . . 37 38 38 38 33 33 33 33 27 Device 7 | . 14 13 8 . . . 9 12 12 6 6 11 9 5 6 7 Storage 9 | . 14 14 11 11 11 11 9 7 7 7 7 6 6 6 6 6 Processor 11 | . . . 8 11 11 11 9 11 15 15 15 17 20 20 20 16 Protection 5 | . . . 2 11 11 11 8 5 2 8 7 3 3 6 6 3 Ballistic Gun 12 | . 25 28 20 22 22 22 15 1 . . . . . . . . Slashing Weapon 5 | . . . . . . . 2 13 12 13 15 13 6 13 20 14 Peak Build Rating 103 | 7 11 11 25 25 26 25 30 55 54 61 63 84 87 94 92 103 Average Rating 41 | 5 10 10 20 24 23 24 28 50 52 56 61 77 81 90 91 80 On Entrance 42 | . 7 11 11 25 25 22 25 26 55 54 58 62 81 80 92 92 Naked Turns . | . . . . . . . . . . . . . . . . . Heaviest Build 80 | 11 32 52 57 57 57 62 63 66 64 72 68 70 74 80 80 80 Greatest Support 120 | 40 40 40 60 60 60 60 80 77 77 77 77 84 78 90 90 120 Greatest Overweight (x) 3 | 3 . 1 1 . 1 1 1 . . . . . . 1 . 3 Average Overweight (x) . | . . . . . . . . . . . . . . . . . Largest Inventory Capacity 20 | 8 15 20 20 20 20 20 20 20 20 20 20 20 20 20 20 20 Average Capacity 19 | 7 13 17 20 20 20 20 20 20 20 20 20 20 20 20 20 20 Most Carried 20 | 7 15 18 20 20 20 20 20 20 20 20 20 20 20 20 20 20 Average Carried 18 | 4 11 15 19 19 19 20 19 15 18 19 20 19 19 19 20 18 Final Capacity 20 | 8 15 20 20 20 20 20 20 20 20 20 20 20 20 20 20 20 Final Carried 20 | 7 15 16 20 20 20 20 20 18 20 20 20 20 18 20 20 11 Class Distribution -------------------- 51% | Mutant 27% | Gladiator 8% | Scavenger-Mutant 4% | Commander-Gladiator 3% | Assassin Dominant Class ---------------- Mutant | -10/Materials Mutant | -10/Mines Mutant | -9/Materials Mutant | -9/Mines Scavenger-Mutant | -9/Exiles Mutant | -8/Mines Mutant | -8/Materials Assassin | -7/Factory Gladiator | -7/Lower Caves Gladiator | -7/Zion Gladiator | -6/Proximity Caves Gladiator | -6/Factory Gladiator | -6/Extension Commander-Gladiator | -6/Cetus Commander-Gladiator | -6/Archives Gladiator | -6/Hub_04(d) Resources | -11 -10 -10 -9 -9 -9 -8 -8 -7 -7 -7 -6 -6 -6 -6 -6 -6 ----------- Run | Yrd Mat Min Mat Min Exi Min Mat Fac Low Zio Pro Fac Ext Cet Arc Hub Matter Collected 4612 | 283 471 170 984 73 . 86 462 173 95 154 27 503 288 302 44 497 Remotely . | . . . . . . . . . . . . . . . . . Salvage Created 6260 | 153 850 204 1897 42 . 86 809 173 . . 94 725 508 73 96 550 Parts 373 | 12 52 18 115 . . 7 43 17 . . 7 48 20 5 11 18 Haulers Intercepted 11 | . 2 . 6 . . . 3 . . . . . . . . . Recyclers Shooed 5 | . . . . 2 . . 3 . . . . . . . . . Parts Field Recycled . | . . . . . . . . . . . . . . . . . Retrieved Matter . | . . . . . . . . . . . . . . . . . Parts Self-Destructed 11 | . . . . . . . . . 3 1 7 . . . . . Prevented . | . . . . . . . . . . . . . . . . . Kills | -11 -10 -10 -9 -9 -9 -8 -8 -7 -7 -7 -6 -6 -6 -6 -6 -6 ------- Run | Yrd Mat Min Mat Min Exi Min Mat Fac Low Zio Pro Fac Ext Cet Arc Hub Combat Hostiles Destroyed 123 | . 17 9 34 3 . 4 23 3 . . 3 11 6 1 . 9 Melee 30 | . . . 1 . . . . 3 . . 2 11 6 . . 7 Guns 77 | . 17 9 33 3 . 4 11 . . . . . . . . . AOE 15 | . . . . . . . 12 . . . 1 . . 1 . 1 Classes Destroyed 14 | 2 6 . 2 1 . 1 . 1 . . 1 . . . . . Worker 11 | . 1 . 2 . . . . 1 . . . 3 . . . 4 Builder 6 | . . . 4 . . . . . . . . . . . . 2 Tunneler 4 | 3 . . . . . 1 . . . . . . . . . . Hauler 11 | . 2 . 6 . . . 3 . . . . . . . . . Recycler 7 | 1 1 1 1 . . . . . . . . . 2 . . 1 Minesweeper 1 | . . . . . . . . . . . 1 . . . . . Operator 6 | . 1 . 1 . . . . . . . . 1 . . 3 . Watcher 9 | . 3 . 2 . . . . . . . . 2 . 1 . 1 Swarmer 40 | . 5 7 7 . . 3 11 . . . 3 1 3 . . . Grunt 45 | . 12 2 18 . . . 8 . . . . 3 2 . . . Sentry 18 | . . . 9 . . . 4 1 . . . 2 1 . . 1 Hunter 3 | . . . . . . 1 . . . . . 1 . . . 1 Programmer 8 | . . . . . . . . 2 . . . 4 . . . 2 Cetus Guard 1 | . . . . . . . . . . . . . . 1 . . Lightning 5 | . . . . . . . . . . . . . . . . 5 Assembled 3 | . . . . 3 . . . . . . . . . . . . Best Kill Streak 8 | 3 8 3 7 2 . 3 7 1 . . 2 4 2 2 2 6 Combat Bots Only 7 | . 7 3 6 2 . 3 7 1 . . 2 4 2 1 . 1 Max Kills in Single Turn 3 | 1 2 1 2 1 . 1 3 1 . . 1 1 1 1 1 2 Gunslinging . | . . . . . . . . . . . . . . . . . Exploded 3 | . . . . . . . 3 . . . 1 . . 1 . 1 Melee 1 | . . . 1 . . . . 1 . . 1 1 1 . . 1 Uniques/NPCs Destroyed 1 | . . . . . . . . . . . . . . 1 . . A7 (-6/Cetus) Combat | -11 -10 -10 -9 -9 -9 -8 -8 -7 -7 -7 -6 -6 -6 -6 -6 -6 -------- Run | Yrd Mat Min Mat Min Exi Min Mat Fac Low Zio Pro Fac Ext Cet Arc Hub Hostile Shots Fired 751 | . 54 54 184 11 . 18 67 22 1 . 14 49 43 15 . 219 Missed 216 | . 16 23 51 3 . 5 17 11 . . 8 17 10 4 . 51 Hits 535 | . 38 31 133 8 . 13 50 11 1 . 6 32 33 11 . 168 Melee 14 | . . . . 1 . . . . 1 . . . . . . 12 Projectile 521 | . 38 31 133 7 . 13 50 11 . . 6 32 33 11 . 156 AOE 2 | . . . . 1 . . . . . . . . . . . 1 Critical Strikes 24 | . 1 1 5 . . . 1 . . . . 2 1 3 . 10 Part Disruptions 5 | . . . . . . . . . . . . 2 . . . 3 Damage Taken 9047 | . 399 271 1555 132 . 153 769 103 . . 77 538 493 227 . 4330 Core 1294 | . 52 27 168 26 . 30 104 32 . . . 20 112 12 . 711 Absorbed by Shields 578 | . . . . . . . . . . . . . 150 167 . 261 Ignored by Resistances 104 | . . . . . . . . . . . . . . . . 104 Regen/Repaired (Parts) 254 | . 230 . . . . . . . . . . . . . . 24 Core Remaining (%) 77 | 100 . 68 . . . 44 81 . . . 95 . . . . . Volleys Fired 317 | 13 63 23 120 9 . 7 50 . 1 . . 1 9 7 . 14 Largest 2 | 2 2 2 2 2 . 2 2 . 1 . . 1 1 1 . 1 Hottest 250 | 60 100 46 100 46 . 46 53 . 30 . . . . 46 . 250 Shots Fired 586 | 26 124 44 235 18 . 14 94 . 1 . . 1 9 7 . 13 Gun 545 | 26 122 44 233 18 . 14 88 . . . . . . . . . Cannon 1 | . . . . . . . . . . . . . . . . 1 Launcher 22 | . . . . . . . 6 . 1 . . . . 4 . 11 Special 18 | . 2 . 2 . . . . . . . . 1 9 3 . 1 Kinetic 532 | 13 122 44 233 18 . 14 88 . . . . . . . . . Thermal 18 | 13 2 . 2 . . . . . . . . . . . . 1 Explosive 23 | . . . . . . . 6 . 1 . . . . 4 . 12 Electromagnetic . | . . . . . . . . . . . . . . . . . Robot Hit Streak 28 | 6 7 6 18 4 . 7 28 . . . . . 3 2 . 5 Robot Miss Streak 7 | 2 7 4 5 4 . 3 7 . . . . . 2 1 . 2 Penetration Max . | . . . . . . . . . . . . . . . . . Secondary Targets 9 | . 2 . 6 . . 1 . . . . . . . . . . Max Gunslinging Chain 1 | . 1 . 1 . . 1 . . . . . . . . . . Shots Hit Robots 520 | 19 65 23 173 12 . 10 72 5 . . 4 27 20 11 3 76 Core Hits 259 | 6 31 13 62 9 . 8 49 5 . . 3 15 7 13 2 36 Critical Kills 1 | . . . 1 . . . . . . . . . . . . . Critical Parts Destroyed 4 | . . . 4 . . . . . . . . . . . . . Critical Strikes 23 | . . . 6 . . . . . . . 1 3 2 1 . 10 Destroy 3 | . . . 3 . . . . . . . . . . . . . Smash 3 | . . . 3 . . . . . . . . . . . . . Sever 16 | . . . . . . . . . . . 1 3 2 1 . 9 Impale 1 | . . . . . . . . . . . . . . . . 1 Melee Attacks 220 | . . . 22 . . . 7 13 5 1 8 49 16 7 4 88 Impact 22 | . . . 22 . . . . . . . . . . . . . Slashing 183 | . . . . . . . 7 13 5 1 8 49 16 7 4 73 Piercing 15 | . . . . . . . . . . . . . . . . 15 Sneak Attacks 30 | . . . 6 . . . . 1 . . 2 6 2 7 3 3 Combat Hostiles 4 | . . . . . . . . . . . 1 3 . . . . Follow-up Attacks 25 | . . . . . . . . . . . 1 4 . . . 20 Damage Inflicted 15484 | 188 1036 419 2961 187 . 142 1843 198 16 . 232 1705 810 773 302 4672 Guns 5481 | 188 1036 386 2472 152 . 120 1127 . . . . . . . . . Cannons . | . . . . . . . . . . . . . . . . . Explosions 3265 | . . . . . . . 662 . 16 . . . . 398 . 2189 Melee 6502 | . . . 439 . . . . 198 . . 232 1705 810 375 302 2441 Ramming 194 | . . 33 50 35 . 22 54 . . . . . . . . . Kinetic 5350 | 57 1036 386 2472 152 . 120 1127 . . . . . . . . . Thermal 213 | 131 . . . . . . . . . . . . . . . 82 Explosive 3183 | . . . . . . . 662 . 16 . . . . 398 . 2107 Electromagnetic . | . . . . . . . . . . . . . . . . . Impact 439 | . . . 439 . . . . . . . . . . . . . Slashing 5796 | . . . . . . . . 198 . . 232 1705 810 375 302 2174 Piercing 309 | . . . . . . . . . . . . . . . . 309 Highest Corruption 56 | . 1 1 . . . . . 1 1 1 1 4 5 5 5 56 Average Corruption 4 | . 1 1 . . . . . 1 1 1 1 3 4 5 4 21 Corruption Purged 5 | . . . . . . . . . . . . . . . 5 . Corruption Blocked . | . . . . . . . . . . . . . . . . . Effects 138 | . 2 10 . . . . . 1 3 12 4 17 31 15 2 41 Message Errors 30 | . 1 2 . . . . . . 1 2 . 5 5 7 1 6 Matter Fused 37 | . . 3 . . . . . 1 . 6 1 6 6 4 . 10 Heat Flow Errors 18 | . 1 1 . . . . . . . 1 2 1 6 . . 6 Energy Discharges 21 | . . 2 . . . . . . . . 1 1 6 3 1 7 Parts Rejected 2 | . . . . . . . . . . . . . . . . 2 Parts Fused 1 | . . . . . . . . . . . . . . . . 1 Data Loss (minor) 13 | . . 1 . . . . . . . . . 2 6 . . 4 Data Loss (major) 6 | . . . . . . . . . 2 1 . 2 . . . 1 Alerts 5 | . . . . . . . . . . 2 . . 2 1 . . Misdirections 3 | . . . . . . . . . . . . . . . . 3 Weapon Failures 2 | . . 1 . . . . . . . . . . . . . 1 Overload Shots . | . . . . . . . . . . . . . . . . . Overflow Damage 782 | . . . 200 . . . 51 . . . . 147 95 . 76 213 Projectiles 1 | . . . 1 . . . . . . . . . . . . . Explosions 108 | . . . . . . . 51 . . . . . . . . 57 Melee 673 | . . . 199 . . . . . . . . 147 95 . 76 156 Knockbacks 5 | . . . 5 . . . . . . . . . . . . . Impact 4 | . . . 4 . . . . . . . . . . . . . Kinetic . | . . . . . . . . . . . . . . . . . Secondary 1 | . . . 1 . . . . . . . . . . . . . Self-Inflicted Damage 125 | . . . . . . . 97 . . . . . . . . 28 Shots 4 | . . . . . . . 3 . . . . . . . . 1 Rammed 23 | . . 5 5 3 . 4 6 . . . . . . . . . Targets Rammed 26 | . . 6 6 3 . 5 6 . . . . . . . . . Kicked . | . . . . . . . . . . . . . . . . . Crushed 3 | . . 1 1 . . 1 . . . . . . . . . . Highest Temperature 258 | 60 254 248 34 . . . 22 . . 192 258 121 181 . . 234 Average Temperature 55 | 35 45 124 12 . . . 6 . . 105 110 61 79 . . 89 Received Heat Transfer 1410 | . 141 51 597 . . . 306 18 . . . 45 55 4 . 193 Siege Activations . | . . . . . . . . . . . . . . . . . Martial Activations . | . . . . . . . . . . . . . . . . . Shielding Activations . | . . . . . . . . . . . . . . . . . Robots Disrupted . | . . . . . . . . . . . . . . . . . Combat Hostiles . | . . . . . . . . . . . . . . . . . Robots Corrupted 5 | . . . 5 . . . . . . . . . . . . . Combat Hostiles . | . . . . . . . . . . . . . . . . . Parts Fried 14 | . . . 14 . . . . . . . . . . . . . Impact Corruptions 11 | . . . 11 . . . . . . . . . . . . . Robots Melted 1 | . . . . . . . . . . . . . . . . 1 Combat Hostiles 1 | . . . . . . . . . . . . . . . . 1 Parts Melted . | . . . . . . . . . . . . . . . . . Heat Transferred 700 | 300 . . . . . . . . . . . . . . . 400 Parts Sabotaged . | . . . . . . . . . . . . . . . . . Parts Stolen 1 | . . . . . . . . . 1 . . . . . . . Parts Stripped . | . . . . . . . . . . . . . . . . . Power Chain Reactions . | . . . . . . . . . . . . . . . . . Alert | -11 -10 -10 -9 -9 -9 -8 -8 -7 -7 -7 -6 -6 -6 -6 -6 -6 ------- Run | Yrd Mat Min Mat Min Exi Min Mat Fac Low Zio Pro Fac Ext Cet Arc Hub Maximum Alert Level 2 | . . . 2 . . . 1 . . . . . 1 1 1 2 Low Security (%) 80 | 100 100 100 37 100 . 100 87 100 . . . 100 92 19 96 18 Level 1 14 | . . . 39 . . . 12 . . . . . 7 80 3 42 Level 2 5 | . . . 22 . . . . . . . . . . . . 39 Level 3 . | . . . . . . . . . . . . . . . . . Level 4 . | . . . . . . . . . . . . . . . . . Level 5 . | . . . . . . . . . . . . . . . . . High Security . | . . . . . . . . . . . . . . . . . Max Security . | . . . . . . . . . . . . . . . . . Peak Influence 546 | 5 153 150 503 189 . 70 366 161 . . . 95 249 330 205 546 Initial 189 | . . 1 18 189 . . . 161 . . . . 5 128 71 25 Average 97 | . 70 37 221 24 . 8 69 40 . . . 22 48 237 145 344 Influence Increases 5929 | 20 535 401 1099 46 . 105 743 150 . . 105 378 730 372 194 1051 Destroy 0b10 Robot/C 3120 | . 340 180 680 40 . 80 460 60 . . 60 220 360 160 80 400 Destroy 0b10 Robot/NC 290 | 20 40 5 80 . . 5 15 5 . . 5 30 10 10 15 50 Destroy Leader 698 | . 70 30 206 . . 20 106 30 . . 10 84 30 . . 112 Allied During Kill 636 | . . . . 6 . . . . . . . . 109 131 95 295 Trap Triggered on 0b10 40 | . . . . . . . 20 . . . . 20 . . . . Successful Hack 220 | . 23 6 44 . . . 36 49 . . . 8 41 8 . 5 Select Force Hacks 60 | . 60 . . . . . . . . . . . . . . . Disable Machine 225 | . . . 30 . . . 15 . . . . . 105 15 . 60 Destroy Structure 235 | . 2 . 14 . . . 61 6 . . . 16 15 48 4 69 Lose Combat Pursuer 405 | . . 180 45 . . . 30 . . . 30 . 60 . . 60 Influence Decreases 5585 | 20 530 358 662 529 2 105 389 504 . . 105 366 511 425 297 782 Entered New Map 792 | . . 4 30 296 2 . . 193 . . . . 7 103 107 50 Time Decay 4213 | 20 520 344 582 233 . 105 369 311 . . 105 366 364 302 170 422 Lost Part 300 | . 10 10 50 . . . 20 . . . . . 20 . . 190 Lost Ally 280 | . . . . . . . . . . . . . 120 20 20 120 Squads Dispatched 34 | . 4 . 5 . . . 4 4 . . . 8 . . . 9 Investigation 10 | . 2 . 2 . . . . 1 . . . 3 . . . 2 Extermination 9 | . . . . . . . . 3 . . . 4 . . . 2 Reinforcement 9 | . 2 . 3 . . . 2 . . . . 1 . . . 1 Assault 1 | . . . . . . . . . . . . . . . . 1 Garrison 5 | . . . . . . . 2 . . . . . . . . 3 Intercept . | . . . . . . . . . . . . . . . . . Searches Triggered . | . . . . . . . . . . . . . . . . . Construction Impeded . | . . . . . . . . . . . . . . . . . Haulers Reinforced . | . . . . . . . . . . . . . . . . . Active Scanning Responses . | . . . . . . . . . . . . . . . . . Cargo Convoy Interrupts . | . . . . . . . . . . . . . . . . . Stealth | -11 -10 -10 -9 -9 -9 -8 -8 -7 -7 -7 -6 -6 -6 -6 -6 -6 --------- Run | Yrd Mat Min Mat Min Exi Min Mat Fac Low Zio Pro Fac Ext Cet Arc Hub Distress Signals 22 | . 3 1 7 . . . 1 . . . . . 6 2 . 2 Communications Jammed . | . . . . . . . . . . . . . . . . . Distress Signals . | . . . . . . . . . . . . . . . . . Times Spotted 245 | . 24 20 59 8 . 4 34 4 4 . 3 19 20 8 3 35 Peak Tracking Total 9 | . 5 3 4 3 . 3 9 1 2 . 2 2 4 5 1 7 Tactical Retreats 20 | . . 6 2 1 . . 2 . . . 2 . 3 . . 4 Traps | -11 -10 -10 -9 -9 -9 -8 -8 -7 -7 -7 -6 -6 -6 -6 -6 -6 ------- Run | Yrd Mat Min Mat Min Exi Min Mat Fac Low Zio Pro Fac Ext Cet Arc Hub Traps Triggered 10 | . 2 . 1 . . . 1 1 . . . 1 1 . . 3 Indirectly . | . . . . . . . . . . . . . . . . . Trap Hack Attempts . | . . . . . . . . . . . . . . . . . Triggered . | . . . . . . . . . . . . . . . . . Disarmed . | . . . . . . . . . . . . . . . . . Reprogrammed 1 | . . . 1 . . . . . . . . . . . . . Reused 6 | . . . . . . . 2 . . . 2 2 . . . . Traps Extracted . | . . . . . . . . . . . . . . . . . Installed 6 | . . . . . . . 2 . . . 2 2 . . . . Triggered 6 | . . . . . . . 2 . . . 2 2 . . . . Most Traps Carried 3 | . . 3 3 3 3 3 3 1 1 1 2 2 . . . . Machines | -11 -10 -10 -9 -9 -9 -8 -8 -7 -7 -7 -6 -6 -6 -6 -6 -6 ---------- Run | Yrd Mat Min Mat Min Exi Min Mat Fac Low Zio Pro Fac Ext Cet Arc Hub Machines Disabled 17 | . . . 2 . . . 1 . 2 . . . 7 1 . 4 Max in Single Turn 2 | . . . 1 . . . 1 . 1 . . . 1 1 . 2 Garrison Access 2 | . . . . . . . . 1 . . . . . . . 1 Network Hub 2 | . . . . . . . . . . . . . . . . 2 Machines Repaired . | . . . . . . . . . . . . . . . . . Machines Dismantled 8 | . . . . . . . . . 1 . . . 6 1 . . Machines Sabotaged . | . . . . . . . . . . . . . . . . . Overloaded Fab Kills . | . . . . . . . . . . . . . . . . . Hacking | -11 -10 -10 -9 -9 -9 -8 -8 -7 -7 -7 -6 -6 -6 -6 -6 -6 --------- Run | Yrd Mat Min Mat Min Exi Min Mat Fac Low Zio Pro Fac Ext Cet Arc Hub Machines Accessed 67 | . 7 1 8 . 2 . 6 7 . 1 . 9 16 3 . 7 Terminals 51 | . 4 1 8 . . . 6 3 . . . 5 16 3 . 5 Fabricators 5 | . . . . . . . . 2 . . . 3 . . . . Repair Stations 1 | . 1 . . . . . . . . . . . . . . . Recycling Units 3 | . 2 . . . . . . 1 . . . . . . . . Scanalyzers . | . . . . . . . . . . . . . . . . . Garrison Access 4 | . . . . . . . . 1 . . . 1 . . . 2 Total Hacks 167 | . 19 2 25 . 2 . 22 21 . 2 . 22 30 6 . 16 Successful 73 | . 14 2 13 . 2 . 12 8 . 2 . 8 8 2 . 2 Failed 93 | . 5 . 12 . . . 9 13 . . . 14 22 4 . 14 Catastrophic 21 | . 1 . 2 . . . 2 3 . . . 3 4 1 . 5 Database Lockouts 1 | . . . . . . . 1 . . . . . . . . . Manual 97 | . 12 1 22 . 1 . 20 15 . . . 10 5 1 . 10 Terminals 130 | . 10 2 25 . . . 22 14 . . . 10 30 6 . 11 Fabricators 14 | . . . . . . . . 4 . . . 10 . . . . Repair Stations 6 | . 6 . . . . . . . . . . . . . . . Recycling Units 4 | . 3 . . . . . . 1 . . . . . . . . Scanalyzers . | . . . . . . . . . . . . . . . . . Garrison Access 9 | . . . . . . . . 2 . . . 2 . . . 5 Terminal Hacks 30 | . 3 2 5 . 2 . 4 2 . 2 . 2 6 2 . . Record 4 | . . 1 . . 1 . . . . . . . . 2 . . Part Schematic 2 | . . . . . . . . . . 2 . . . . . . Robot Analysis 5 | . 2 . 1 . . . 2 . . . . . . . . . Prototype ID Bank 2 | . . . 1 . . . . . . . . . 1 . . . Open Door 6 | . . . . . . . . . . . . 1 5 . . . Level Access Points 1 | . . . 1 . . . . . . . . . . . . . Locate Traps 1 | . . . . . . . . 1 . . . . . . . . Reprogram Traps 2 | . . . 2 . . . . . . . . . . . . . Hauler Manifests 4 | . 1 . . . . . 1 1 . . . 1 . . . . Zone Layout 2 | . . 1 . . . . 1 . . . . . . . . . Proto ID Catalog 1 | . . . . . 1 . . . . . . . . . . . Fabricator Hacks 5 | . . . . . . . . 1 . . . 4 . . . . Network Status 1 | . . . . . . . . 1 . . . . . . . . Load Schematic 3 | . . . . . . . . . . . . 3 . . . . Build 1 | . . . . . . . . . . . . 1 . . . . Repair Station Hacks 6 | . 6 . . . . . . . . . . . . . . . Scan Component 3 | . 3 . . . . . . . . . . . . . . . Repair 3 | . 3 . . . . . . . . . . . . . . . Recycling Unit Hacks 1 | . . . . . . . . 1 . . . . . . . . Retrieve Components 1 | . . . . . . . . 1 . . . . . . . . Scanalyzer . | . . . . . . . . . . . . . . . . . Garrison Access Hacks 2 | . . . . . . . . 1 . . . . . . . 1 Seal Access 2 | . . . . . . . . 1 . . . . . . . 1 Unauthorized Hacks 29 | . 5 . 8 . . . 8 3 . . . 2 2 . . 1 Terminals 25 | . 3 . 8 . . . 8 2 . . . 1 2 . . 1 Botnet 11 | . 1 . 2 . . . 3 1 . . . 1 2 . . 1 Skim 14 | . 2 . 6 . . . 5 1 . . . . . . . . Fabricators 2 | . . . . . . . . 1 . . . 1 . . . . Fabnet 1 | . . . . . . . . 1 . . . . . . . . Recompile 1 | . . . . . . . . . . . . 1 . . . . Repair Stations . | . . . . . . . . . . . . . . . . . Recycling Units 2 | . 2 . . . . . . . . . . . . . . . Tunnel 2 | . 2 . . . . . . . . . . . . . . . Scanalyzers . | . . . . . . . . . . . . . . . . . Garrison Access . | . . . . . . . . . . . . . . . . . Data Cores Recovered 2 | . . . . . . . . . . . . 1 . . . 1 Used 1 | . . . . . . . . . . . . 1 . . . . Hacking Detections 56 | . 5 1 7 . . . 6 6 . . . 8 14 3 . 6 Full Trace Events 4 | . 1 . . . . . . . . . . 1 . . . 2 Feedback Events . | . . . . . . . . . . . . . . . . . Feedback Blocked . | . . . . . . . . . . . . . . . . . Robot Schematics Acquired 3 | . . . . . . . . . . 3 . . . . . . Robots Built . | . . . . . . . . . . . . . . . . . Authchips . | . . . . . . . . . . . . . . . . . Time . | . . . . . . . . . . . . . . . . . Total Robot Build Rating . | . . . . . . . . . . . . . . . . . Part Schematics Acquired 15 | . . . . . . . . . . 15 . . . . . . Parts Built 1 | . . . . . . . . . . . . 1 . . . . Authchips 1 | . . . . . . . . . . . . 1 . . . . Time 84 | . . . . . . . . . . . . 84 . . . . Total Part Build Rating 6 | . . . . . . . . . . . . 6 . . . . Parts Repaired 3 | . 3 . . . . . . . . . . . . . . . Time 78 | . 78 . . . . . . . . . . . . . . . Parts Recycled . | . . . . . . . . . . . . . . . . . Recycled Matter . | . . . . . . . . . . . . . . . . . Retrieved Matter . | . . . . . . . . . . . . . . . . . Retrieved Components 5 | . . . . . . . . 5 . . . . . . . . Parts Scanalyzed . | . . . . . . . . . . . . . . . . . Part Schematics Acquired . | . . . . . . . . . . . . . . . . . Parts Damaged . | . . . . . . . . . . . . . . . . . Bothacking | -11 -10 -10 -9 -9 -9 -8 -8 -7 -7 -7 -6 -6 -6 -6 -6 -6 ------------ Run | Yrd Mat Min Mat Min Exi Min Mat Fac Low Zio Pro Fac Ext Cet Arc Hub Used RIF Installer . | . . . . . . . . . . . . . . . . . Robots Hacked 1 | . . . . . . . . . . . . . . . . 1 Non-combat . | . . . . . . . . . . . . . . . . . Combat 1 | . . . . . . . . . . . . . . . . 1 Robot Hacks Applied . | . . . . . . . . . . . . . . . . . Relay Couplers Released . | . . . . . . . . . . . . . . . . . Fabnet Peak Effective % 3 | . . . . . . . . . . . 3 3 3 3 3 3 Autooverrided 1 | . . . . . . . . . . . . . . . . 1 Robots Rewired . | . . . . . . . . . . . . . . . . . Allies Hacked 1 | . . . . . . . . . . . . . . . . 1 Hacks Repelled . | . . . . . . . . . . . . . . . . . Allies | -11 -10 -10 -9 -9 -9 -8 -8 -7 -7 -7 -6 -6 -6 -6 -6 -6 -------- Run | Yrd Mat Min Mat Min Exi Min Mat Fac Low Zio Pro Fac Ext Cet Arc Hub Total Allies 24 | . . . . 3 . . . . . . . . 15 5 . 1 Largest Group 11 | . . . . 3 3 . . . . . . . 9 11 8 8 Highest-Rated Group 808 | . . . . 72 72 . . . . . . . 328 808 514 528 Highest-Rated Ally 159 | . . . . 31 31 . . . . . . . 159 152 96 96 Total Orders . | . . . . . . . . . . . . . . . . . Ally Attacks 298 | . . . . 3 . . . . . . . . 132 53 30 80 Total Damage 7202 | . . . . 60 . . . . . . . . 2367 2053 916 1806 Kills 41 | . . . . 2 . . . . . . . . 13 8 5 13 Allies Corrupted 2 | . . . . . . . . . . . . . 1 . . 1 Allies Melted . | . . . . . . . . . . . . . . . . . Intel | -11 -10 -10 -9 -9 -9 -8 -8 -7 -7 -7 -6 -6 -6 -6 -6 -6 ------- Run | Yrd Mat Min Mat Min Exi Min Mat Fac Low Zio Pro Fac Ext Cet Arc Hub Active Infowar (turns) 13488 | 21 1801 1137 1863 . . . 1802 1031 275 534 650 1547 1186 672 353 616 Optics 6 | . . . . . . . . . . 6 . . . . . . Sensors 4355 | . . . . . . . . 1019 274 526 650 1264 567 . . 55 Structural 5522 | . . . . . . . 1802 812 275 528 . 1540 565 . . . Seismic 4822 | 21 1801 1137 1863 . . . . . . . . . . . . . T.N.C. 3883 | . . . . . . . . . . . . 1056 1186 672 353 616 Robot Analysis Total 5 | . 2 . 1 . . . 2 . . . . . . . . . Derelict Logs Recovered 5 | . . 1 . 1 . . . . 1 1 1 . . . . . Drone Launches . | . . . . . . . . . . . . . . . . . Drone Recoveries . | . . . . . . . . . . . . . . . . . Exploration | -11 -10 -10 -9 -9 -9 -8 -8 -7 -7 -7 -6 -6 -6 -6 -6 -6 ------------- Run | Yrd Mat Min Mat Min Exi Min Mat Fac Low Zio Pro Fac Ext Cet Arc Hub Turns Passed 19198 | 123 1801 1141 2567 1630 435 1589 1802 1093 332 1192 700 1547 1186 672 353 1035 Spaces Moved 10889 | 57 916 533 1178 627 258 699 933 818 230 945 556 1080 800 444 206 609 Core 23 | 23 . . . . . . . . . . . . . . . . Treads 5178 | 34 916 533 1178 627 258 699 933 . . . . . . . . . Legs 5688 | . . . . . . . . 818 230 945 556 1080 800 444 206 609 Wheels . | . . . . . . . . . . . . . . . . . Hover . | . . . . . . . . . . . . . . . . . Flight . | . . . . . . . . . . . . . . . . . Fastest Speed 50 | 50 160 160 160 170 160 160 162 122 122 122 122 105 108 108 108 106 Average Speed 144 | 123 160 194 165 170 165 222 162 122 122 122 122 118 108 111 108 118 Slowest Speed 330 | 200 160 240 240 170 250 240 240 122 122 122 122 122 108 186 108 330 Overloaded Moves . | . . . . . . . . . . . . . . . . . Propulsion Burnouts . | . . . . . . . . . . . . . . . . . Robots Hopped . | . . . . . . . . . . . . . . . . . Potential Cave-ins 3 | . . . . . . . . . . . . . . . . 3 Cave-ins Triggered 2 | . . . . . . . . . . . . . . . . 2 Exploration Rate (%) 68 | 4 97 97 95 97 61 99 56 20 37 81 68 30 82 89 96 50 Regions Visited 16 Branch Regions 11 Pre-discovered Areas 6 | . 2 . . 1 1 . 1 . . 1 . . . . . . Known Exits Taken 9 | . . . . . . 1 . 1 1 1 1 1 1 1 1 . Unknown Exits Taken 7 | 1 1 1 1 1 1 . 1 . . . . . . . . . Scrap Searched 8 | . . 2 . 1 . 2 . . 1 2 . . . . . . Spaces Dug 55 | . 2 . 11 . . . 15 6 2 . 2 16 . . . 1 Terrain Destroyed 242 | . 2 . 11 . . . 61 6 8 . 2 16 . 64 . 72 Melee 43 | . . . 9 . . . 7 6 2 . 2 16 . . . 1 Projectile 4 | . 2 . 2 . . . . . . . . . . . . . AOE 195 | . . . . . . . 54 . 6 . . . . 64 . 71 Terrain Rammed . | . . . . . . . . . . . . . . . . . Walls Destroyed . | . . . . . . . . . . . . . . . . . Machines Disabled . | . . . . . . . . . . . . . . . . . Actions | -11 -10 -10 -9 -9 -9 -8 -8 -7 -7 -7 -6 -6 -6 -6 -6 -6 --------- Run | Yrd Mat Min Mat Min Exi Min Mat Fac Low Zio Pro Fac Ext Cet Arc Hub Total 13237 | 83 1127 587 1522 1172 269 717 1110 896 252 981 566 1271 976 585 331 792 Wait 1297 | . 108 19 116 532 . 1 81 21 . 3 . 82 77 81 119 57 Move 10872 | 56 915 532 1177 626 257 698 932 817 229 944 555 1079 799 443 205 608 Hop . | . . . . . . . . . . . . . . . . . Pick Up 104 | 7 16 3 23 1 3 2 5 11 2 5 . 11 5 5 . 5 Fast Attach 58 | 7 3 . 8 . 1 . 1 2 . 8 . 6 . 11 2 9 Attach 47 | . 1 2 5 . 2 . 3 8 . . . 5 7 3 . 11 Detach 20 | . 1 . 2 . 1 . . 3 . 5 . 3 . 3 1 1 Swap 113 | . 9 1 17 . . 1 17 12 7 7 3 19 12 3 . 5 Drop 121 | . 11 1 26 1 5 3 6 11 . 8 . 20 4 14 1 10 Fire 317 | 13 63 23 120 9 . 7 50 . 1 . . 1 9 7 . 14 Melee 185 | . . . 22 . . . 7 11 4 1 6 43 15 7 3 66 Ram . | . . . . . . . . . . . . . . . . . Kick . | . . . . . . . . . . . . . . . . . Crush 26 | . . 6 6 3 . 5 6 . . . . . . . . . Escape Stasis 6 | . . . . . . . . . . . . . . . . 6 Rewire . | . . . . . . . . . . . . . . . . . Trap 6 | . . . . . . . 2 . . . 2 2 . . . . Miscellaneous 65 | . . . . . . . . . 9 . . . 48 8 . . Route ------- -11/Scrapyard -10/Materials (discovered 5 exits: *Mat x3 / *Min x2) -10/Mines (discovered 2 exits: *Mat x2) -9/Materials (discovered 4 exits: *Mat x3 / [*Min]) -9/Mines (discovered 3 exits: *Mat x2 / *Exi) -9/Exiles (discovered 2 exits: [*Min x2]) -8/Mines (discovered 2 exits: *Mat x2) -8/Materials (discovered 3 exits: *Fac / [*Sto x2]) -7/Factory (discovered 5 exits: *Fac x3 / *Low x2) -7/Lower Caves -7/Zion -6/Proximity Caves -6/Factory (discovered 3 exits: *Fac x2 / *Ext) -6/Extension (discovered 2 exits: *Fac / *Cet) -6/Cetus (discovered 3 exits: *Fac x2 / *Arc) -6/Archives (discovered 3 exits: *Fac / *Hub x2) -6/Hub_04(d) History --------- Turn | Location | Event 8 | -11/Scrapyard | Discovered new exit (range 16) 124 | -11/Scrapyard | Entered Materials 269 | -10/Materials | Discovered new exit (range 15) 313 | -10/Materials | Build established: Mutant 431 | -10/Materials | Destroyed 7 combat bots 528 | -10/Materials | Discovered new exit (range 8) 580 | -10/Materials | Discovered new exit (range 9) 1075 | -10/Materials | Discovered new exit (range 16) 1302 | -10/Materials | Repaired Lgt. Treads 1330 | -10/Materials | Repaired Lgt. Treads 1357 | -10/Materials | Repaired Lgt. Treads 1827 | -10/Materials | Discovered new exit (range 3) 1925 | -10/Materials | Entered Mines 1940 | -10/Mines | Discovered new exit (range 9) 2134 | -10/Mines | Learned Materials terminal intel 2680 | -10/Mines | Found a hidden stash of uninstalled traps 3038 | -10/Mines | Discovered new exit (range 7) 3066 | -10/Mines | Entered Materials 3066 | -9/Materials | Evolved 2 slots: Propulsion x1, Utility x1 3067 | -9/Materials | Loaded intel: 12 terminal locations 3509 | -9/Materials | Build established: Scavenger-Mutant 3540 | -9/Materials | Discovered new exit (range 16) 3864 | -9/Materials | Discovered new exit (range 10) 4402 | -9/Materials | Discovered new exit (range 16) 4654 | -9/Materials | Build established: Mutant 5138 | -9/Materials | Learned Storage emergency access door positions 5147 | -9/Materials | Identified exit to Materials 5216 | -9/Materials | Learned Recycling recycling unit intel 5272 | -9/Materials | Learned location of 1 exit from Recycling 5292 | -9/Materials | Learned location of 1 exit from Storage 5633 | -9/Materials | Entered Mines 5719 | -9/Mines | Assembled infested the area 5855 | -9/Mines | Found a damaged Exp. Sensor Array with a note attached 5859 | -9/Mines | Found Prototype Device 5902 | -9/Mines | Deemed a non-threat by the Exiles lab entrance 5904 | -9/Mines | Discovered new exit (range 5) 6552 | -9/Mines | Learned Materials non-interactive machine intel 6775 | -9/Mines | Discovered exit to Materials (range 13) 6926 | -9/Mines | Discovered exit to Materials (range 12) 6930 | -9/Mines | Escorted by a lone wolf Derelict 6950 | -9/Mines | Learned location of Storage (-8) 7263 | -9/Mines | Entered Exiles 7263 | -9/Exiles | Accompanied by 3 allies 7286 | -9/Exiles | Discovered new exit (range 15) 7293 | -9/Exiles | Led the pair of lost Derelicts to a safe place 7306 | -9/Exiles | Met 8R-AWN 7333 | -9/Exiles | Met EX-HEX 7386 | -9/Exiles | Met EX-BIN 7410 | -9/Exiles | Aligned with FarCom system 7411 | -9/Exiles | Given EX-Vault access code 7450 | -9/Exiles | Opened EX-Vault 7468 | -9/Exiles | Found Modified TNC 7482 | -9/Exiles | Found Trap Reconfigurator 7493 | -9/Exiles | Found Firepult 7526 | -9/Exiles | Warned to stay clear of 0b10 Research branches 7572 | -9/Exiles | Met EX-DEC 7626 | -9/Exiles | Learned location of Zion (-7) 7681 | -9/Exiles | Discovered new exit (range 12) 7698 | -9/Exiles | Stole three prototypes: Modified TNC, Trap Reconfigurator, Firepult 7698 | -9/Exiles | Entered Mines 7750 | -8/Mines | Discovered exit to Materials (range 10) 7760 | -8/Mines | Build established: Scavenger-Mutant 8238 | -8/Mines | Build established: Mutant 8494 | -8/Mines | Core integrity fell below 50% 8708 | -8/Mines | Discovered exit to Materials (range 7) 9287 | -8/Mines | Entered Materials 9287 | -8/Materials | Evolved 2 slots: Propulsion x1, Utility x1 9288 | -8/Materials | Loaded intel: 47 non-interactive machine locations 9471 | -8/Materials | Discovered new exit (range 9) 9902 | -8/Materials | Discovered new exit (range 11) 10035 | -8/Materials | Garrison activated, responded to threat 10070 | -8/Materials | Learned location of 1 exit from Storage 10115 | -8/Materials | Learned 8 Factory zone layouts 10152 | -8/Materials | Learned Recycling recycling unit intel 10205 | -8/Materials | Learned location of 1 exit from Storage 10221 | -8/Materials | Learned 4 Factory zone layouts 10288 | -8/Materials | Learned location of 1 exit from Storage 10627 | -8/Materials | Discovered new exit (range 16) 10703 | -8/Materials | Central database locked down 10788 | -8/Materials | Destroyed 7 combat bots 11006 | -8/Materials | Garrison activated, responded to threat 11089 | -8/Materials | Entered Factory 11089 | -7/Factory | Evolved 2 slots: Propulsion x1, Utility x1 11090 | -7/Factory | Identified exit to Lower Caves 11091 | -7/Factory | Identified exit to Factory 11091 | -7/Factory | FarCom data flow suspended 11098 | -7/Factory | Identified Exp. Sensor Array 11330 | -7/Factory | Discovered exit to Factory (range 7) 11420 | -7/Factory | Build established: Assassin 11623 | -7/Factory | Discovered exit to Lower Caves (range 13) 12103 | -7/Factory | Build established: Gladiator 12182 | -7/Factory | Entered Lower Caves 12182 | -7/Lower Caves | Spotted T7-AN2(f) 12182 | -7/Lower Caves | Spotted AC-HDR(f) 12183 | -7/Lower Caves | Trap Reconfigurator stolen by Master Thief 12184 | -7/Lower Caves | Encountered a Master Thief 12184 | -7/Lower Caves | Encountered a Master Thief 12311 | -7/Lower Caves | Found Prototype Special Weapon 12500 | -7/Lower Caves | Learned location of 1 exit from Factory 12510 | -7/Lower Caves | A Derelict revealed a hidden shortcut to a safe place 12514 | -7/Lower Caves | Identified exit to Zion 12514 | -7/Lower Caves | Entered Zion 12533 | -7/Zion | Given A8's code to call for help 12622 | -7/Zion | Discovered new exit (range 14) 12922 | -7/Zion | Learned location of Warlord (-5) 12999 | -7/Zion | Learned 4 Factory zone layouts 13049 | -7/Zion | Found Prototype Processor 13049 | -7/Zion | Identified Spectral Analyzer 13056 | -7/Zion | Found Prototype Hackware 13056 | -7/Zion | Identified Exp. System Shield 13060 | -7/Zion | Found Prototype Processor 13060 | -7/Zion | Identified Exp. Terrain Scan Processor 13063 | -7/Zion | Found Prototype Processor 13063 | -7/Zion | Identified Exp. Melee Analysis Suite 13070 | -7/Zion | Found Prototype Processor 13070 | -7/Zion | Identified Exp. Target Analyzer 13073 | -7/Zion | Found Prototype Processor 13073 | -7/Zion | Identified Exp. Targeting Computer 13085 | -7/Zion | Found Spectral Analyzer 13198 | -7/Zion | Found Prototype Special Weapon 13200 | -7/Zion | Found Prototype Special Weapon 13201 | -7/Zion | Identified RU-N14's Throwing Claymores (x2) 13204 | -7/Zion | Found RU-N14's Throwing Claymores 13349 | -7/Zion | Learned Factory garrison access intel 13704 | -7/Zion | Identified exit to Proximity Caves 13706 | -7/Zion | Entered Proximity Caves 13883 | -6/Proximity Caves | Spotted B-75 Beast 14285 | -6/Proximity Caves | Learned 8 Factory zone layouts 14363 | -6/Proximity Caves | Discovered exit to Factory (range 16) 14406 | -6/Proximity Caves | Entered Factory 14406 | -6/Factory | Evolved 2 slots: Utility x1, Weapon x1 14407 | -6/Factory | Identified exit to Factory 14409 | -6/Factory | Loaded intel: 4 garrison access locations 14512 | -6/Factory | Identified Molecular Deconstructor 14937 | -6/Factory | Fabricated Tiamat Missile Launcher (x1) 15612 | -6/Factory | Discovered exit to Factory (range 7) 15948 | -6/Factory | Discovered new exit (range 6) 15952 | -6/Factory | Identified exit to Extension 15953 | -6/Factory | Entered Extension 16053 | -6/Extension | Rescued a captive Derelict 16054 | -6/Extension | Rescued a captive Derelict 16083 | -6/Extension | Rescued a captive Derelict 16121 | -6/Extension | Rescued a captive Derelict 16131 | -6/Extension | Rescued a captive Derelict 16143 | -6/Extension | Rescued a captive Derelict 16229 | -6/Extension | Rescued a captive Derelict 16231 | -6/Extension | Rescued a captive Derelict 16309 | -6/Extension | Rescued a captive Derelict 16663 | -6/Extension | Spotted B-75 Beast 16687 | -6/Extension | Allies destroyed B-75 Beast 16707 | -6/Extension | Spotted B-75 Beast 16788 | -6/Extension | Lost 3 allies 16965 | -6/Extension | Rescued A7 17010 | -6/Extension | Rescued a captive Derelict 17010 | -6/Extension | Rescued a captive Derelict 17035 | -6/Extension | Rescued a captive Derelict 17035 | -6/Extension | Rescued a captive Derelict 17090 | -6/Extension | Rescued a captive Derelict 17113 | -6/Extension | Discovered exit to Factory (range 10) 17114 | -6/Extension | Discovered new exit (range 6) 17119 | -6/Extension | Identified exit to Cetus 17139 | -6/Extension | Entered Cetus 17139 | -6/Cetus | Accompanied by 6 allies (A7) 17144 | -6/Cetus | Acquired a Cetus Manufacturing Module code from A7 17166 | -6/Cetus | Spotted Cetus Guard 17167 | -6/Cetus | Spotted Cetus Guard 17170 | -6/Cetus | Destroyed Cetus Guard 17171 | -6/Cetus | Allies destroyed Cetus Guard 17176 | -6/Cetus | Spotted Cetus Guard 17177 | -6/Cetus | Allies destroyed Cetus Guard 17257 | -6/Cetus | Started Cetus Manufacturing Module 17282 | -6/Cetus | Manufactured an Enhanced Grunt 17291 | -6/Cetus | Escorted A7 to Cetus Mainframe 17307 | -6/Cetus | Manufactured an Enhanced Grunt 17332 | -6/Cetus | Manufactured an Enhanced Grunt 17357 | -6/Cetus | Manufactured an Enhanced Grunt 17370 | -6/Cetus | Discovered new exit (range 15) 17382 | -6/Cetus | Manufactured an Enhanced Grunt 17405 | -6/Cetus | Spotted Cetus Guard 17405 | -6/Cetus | Spotted Cetus Guard 17416 | -6/Cetus | Spotted Cetus Guard 17417 | -6/Cetus | Spotted Cetus Guard 17423 | -6/Cetus | Allies destroyed Cetus Guard 17428 | -6/Cetus | Allies destroyed Cetus Guard 17432 | -6/Cetus | Allies destroyed Cetus Guard 17437 | -6/Cetus | Allies destroyed Cetus Guard 17441 | -6/Cetus | Discovered exit to Factory (range 15) 17446 | -6/Cetus | Met Revision 17 17477 | -6/Cetus | Found Prototype Device 17477 | -6/Cetus | Identified Exp. Thermal Shield 17541 | -6/Cetus | Murdered A7 17545 | -6/Cetus | Extracted ID and sensor layout for unrecognized location from A7's data core 17552 | -6/Cetus | Found Prototype Protection 17552 | -6/Cetus | Identified Med. Regenerative Plating 17579 | -6/Cetus | Identified exit to Archives 17665 | -6/Cetus | Discovered exit to Factory (range 15) 17751 | -6/Cetus | Build established: Commander-Gladiator 17811 | -6/Cetus | Entered Archives 17811 | -6/Archives | Accompanied by 9 allies 17849 | -6/Archives | Unable to access archive contents 17853 | -6/Archives | Discovered exit to Factory (range 14) 18013 | -6/Archives | Discovered new exit (range 13) 18025 | -6/Archives | Identified exit to Hub_04(d) 18052 | -6/Archives | Discovered exit to Hub_04(d) (range 13) 18164 | -6/Archives | Entered Hub_04(d) 18164 | -6/Hub_04(d) | Accompanied by 7 allies 18530 | -6/Hub_04(d) | Network Hub disabled 18544 | -6/Hub_04(d) | Spotted Lightning 18544 | -6/Hub_04(d) | Spotted Lightning 18567 | -6/Hub_04(d) | Destroyed Lightning 18587 | -6/Hub_04(d) | Crushed by falling debris 18587 | -6/Hub_04(d) | System corruption reached 10% 18609 | -6/Hub_04(d) | Lost 3 allies 18639 | -6/Hub_04(d) | Found Prototype Device 18639 | -6/Hub_04(d) | Identified Exp. EM Shield 18687 | -6/Hub_04(d) | Destroyed Lightning 18759 | -6/Hub_04(d) | Spotted Lightning 18774 | -6/Hub_04(d) | Spotted Lightning 18775 | -6/Hub_04(d) | Spotted Lightning 18805 | -6/Hub_04(d) | Destroyed Lightning 18822 | -6/Hub_04(d) | System corruption reached 30% 18830 | -6/Hub_04(d) | Destroyed Lightning 18859 | -6/Hub_04(d) | Lost 6 parts (1p2n3u) 18864 | -6/Hub_04(d) | First assault squad dispatched 18886 | -6/Hub_04(d) | Destroyed Lightning 18963 | -6/Hub_04(d) | Core integrity fell below 50% 18972 | -6/Hub_04(d) | Network Hub disabled 19093 | -6/Hub_04(d) | Crushed by falling debris 19161 | -6/Hub_04(d) | Core integrity fell below 20% 19199 | -6/Hub_04(d) | Destroyed by H-66 Slayer with Gauss Rifle Last Messages --------------- 19119_ System corrupted: Heat flow error (+144). 19135_ System corrupted: Heat flow error (+171). 19151_ System corrupted: Matter fused (-7). 19156_ W-25 Informer sends out distress signal. 19163_ ALERT: Hostiles spotted, dispatching reinforcements to Terminal H008. 19166_ Z IEUQP#VRYLQEMD 19182_ K-01 Serf cleans the Archive Unit. 19187_ Imp. Deuterium Engine destroyed. 19188_ Slug penetrates Wall. 19188_ H-66 Slayer critical meltdown. 19190_ Enh. Biometal Leg destroyed. 19191_ Slug penetrates Wall. 19195_ Penetrated by Slug. 19196_ System corrupted: Component data lost. 19196_ Dropped Molecular Deconstructor. 19198_ Y-54 Guardian Lgt. Treads severed. 19199_ Penetrated by Slug. Map ----- +----------------------------------------------------+ | ??????????????????????????????????????? #??????? | | ??????????????????????????????????????? #??????? | | ??????????????????????????????????????? #??????? | | ??????????????????????????????????????# #??????? | | ?????????????????????????????#????????# #??????? | | ?????????????????????+?????? #????????# #??????? | | ?????????????????????# #????????+ +??????? | | ?????????????????????# """" #????????# #??????? | | ?????????????????????+ """" ?????????# #??????? | | ?????????????????????# """" ?????????# #??????? | | ?????????????????????? """"??????????# #??????? | | ???????????????????????? ??#+#?????# #??????? | | ????????????????##########h#### ####### #??????? | | ????????????????# + #??????? | | ????????????????# ## #??????? | | ????????????????# # # ######### #??????? | | ????????????????# # ????????# #??????? | | ????????????????# # ?????????# #??????? | | ????????????????# # ?????????# #??????? | | ????????????????# + #?????????# #??????? | | ????????????????# # +?????????# #??????? | | ????????????????# # Yw #?????????# ######## | | ????????????????# ## ##?????????# # | | ????????????????# ## #??????????# # | | ????????????????# ## #??????????# # """" | | ????????????????# ##@ #??????????# # """" | | ????????????????######### #??????????# + """" | | ????????????????????????# #??????????# # """" | | ????????????????????????# #??????????# # | | ????????????????????????# +??????????# # | | ????????????????????????# #??????????# ######## | | ????????????????????????# #??????????# #??????? | | ???????????????????????? k #??????????# #??????? | | ???????????????????????? #??????????# #??????? | | ????????????????????????# ##??????????# ???????? | | ????????????????????????? ????????????# ???????? | | ????????????????????????? ????????????+ ???????? | | ?????????????????????????+????????????# ???????? | | ????????????????????????? ????????????# ???????? | | ??????????????????????????????????????# ???????? | | ??????????????????????????????????????? ??????? | | ??????????????????????????????????????????????? " | | ?????????????????????????????????????????????# | | ?????????????????????????????????????????????+ | | ?????????????????????????????????????????????# | | ?????????????????????????????????????????????" | | ?????????????????????????????????????????????? | | ??????????????????????????????????????????????##"# | | ?????????????????????????????????????????????????? | | ?????????????????????????????????????????????????? | +----------------------------------------------------+ Best States ------------- Heat Dissipation 37 Energy Generation 21 Energy Capacity 325 Matter Stores 300 Matter Capacity 300 Sight Range 24 Robot Scan Range 20 Terrain Scan Density 10 Armor Coverage 375 Resistance: EM 75 Evasion (%) 55 Targeting Accuracy 8 Melee Accuracy 6 Recoil Reduction 4 Authchip Count 1 Trap Extractor Capacity 6 Item Schematics ----------------- Battle Cannon | -7/Zion | Free Enh. Flamer | -7/Zion | Free Tiamat Missile Launcher | -7/Zion | Archive Remote Shield | -7/Zion | Archive Plasma Cannon | -7/Zion | Archive Imp. EM Pulse Cannon | -7/Zion | Archive EM Shield | -7/Zion | Archive KE Penetrator | -7/Zion | Archive Imp. Carbon-fiber Leg | -7/Zion | Archive Stasis Canceller | -7/Zion | Archive Fission Core | -7/Zion | Archive Imp. Field Recycling Unit | -7/Zion | Archive Recalibrator | -7/Zion | Archive Angular Momentum Engine | -7/Zion | Archive Adv. Plasma Cannon | -7/Zion | Archive Robot Schematics ------------------ M-14 Sweeper | -7/Zion | Archive A-02 Transporter | -7/Zion | Archive Y-54 Guardian | -7/Zion | Archive Fabricated ------------ Tiamat Missile Launcher | x1 | -6/Factory | Authchip Repaired ---------- Lgt. Treads | 1% | -10/Materials Lgt. Treads | 71% | -10/Materials Lgt. Treads | 63% | -10/Materials Alien Tech Used ----------------- None Achievements -------------- Collateral Damage Deconstruction Project G-00 Revising The Future Challenges ------------ None Game ------ Seed EnergyShockProtection Manual? 0 Play Time 01:46:52 Cumulative 139.6 hours Start 2025.09.14 @ 12:51:02 End 2025.09.14 @ 17:10:36 Sessions 7 Manual Loads 0 Difficulty Rogue Special Mode None Game No. 121 Rogue 121 Adventurer 0 Explorer 0 Win Type - Total 4 Types 3/0/1/0/0/0/0/0/0/0 Lore% 70 Gallery% 63 Achievement% 59 Wizard Run 0 Options --------- Layout 1 ASCII 0 Keyboard 1 Movement Arrows Keybinds 0 Fullscreen 1 Font 24/Smallcaps Map View 50x40 Zoom Use 0% Tactical HUD 1 Map Filters NONE Filters NONE Steam 1 RUN: f752a649-188e-4b60-b9b6-d7d53bc48f58